Workbook

Sheet Квалификация
B3: 8 этап Планета Боулинг
A5: № | B5: Ф.И.О. | C5: 1 | D5: 2 | E5: 3 | F5: итого | G5: сред. | H5: макс. | I5: разн. | J5: турба гейм | K5: место | L5: турба
A6: 2 | B6: Таганов Алексей | C6: 187 | D6: 161 | E6: 257 | F6: =SUM(C6:E6) -> 605 | G6: =AVERAGE(C6:E6) -> 201.6666667 | H6: =MAX(C6:E6) -> 257 | I6: =IF(D6<>"",MAX(C6:E6)-MIN(C6:E6),"") -> 96 | J6: да | K6: 1
A7: 7 | B7: Жиделев Андрей | C7: 191 | D7: 210 | E7: 170 | F7: 571 | G7: 190.3333333 | H7: 210 | I7: 40 | K7: 2
A8: 8 | B8: Горностаев Александр | C8: 176 | D8: 179 | E8: 201 | F8: 556 | G8: 185.3333333 | H8: 201 | I8: 25 | J8: да | K8: 3
A9: 1 | B9: Снигерёв Дмитрий | C9: 199 | D9: 204 | E9: 152 | F9: 555 | G9: 185 | H9: 204 | I9: 52 | J9: да | K9: 4
A10: 6 | B10: Харитонова Наталья | C10: 176 | D10: 202 | E10: 169 | F10: 547 | G10: 182.3333333 | H10: 202 | I10: 33 | J10: да | K10: 5
A11: 5 | B11: Смирнов Константин | C11: 180 | D11: 156 | E11: 176 | F11: 512 | G11: 170.6666667 | H11: 180 | I11: 24 | J11: да | K11: 6
A12: 3 | B12: Москалев Владимир | C12: 170 | D12: 148 | E12: 157 | F12: 475 | G12: 158.3333333 | H12: 170 | I12: 22 | J12: да | K12: 7
A13: 4 | B13: Смирнов Павел | C13: 158 | D13: 113 | E13: 140 | F13: 411 | G13: 137 | H13: 158 | I13: 45 | J13: да | K13: 8

Sheet Раунды
A10: № | B10: Ф.И.О. | C10: 1 | D10: 2 | E10: 3 | F10: итого | G10: сред. | H10: макс. | I10: разн. | J10: место
A11: 2 | B11: Таганов Алексей | C11: 207 | D11: 188 | E11: 185 | F11: =SUM(C11:E11) -> 580 | G11: =AVERAGE(C11:E11) -> 193.3333333 | H11: =MAX(C11:E11) -> 207 | I11: =IF(C11<>"",MAX(B11:E11)-MIN(B11:E11),"") -> 22 | J11: 1
A12: D | B12: Москалев Владимир | C12: 164 | D12: 186 | E12: 161 | F12: =SUM(C12:E12) -> 511 | G12: =AVERAGE(C12:E12) -> 170.3333333 | H12: =MAX(C12:E12) -> 186 | I12: =IF(C12<>"",MAX(B12:E12)-MIN(B12:E12),"") -> 25 | J12: 2
A13: Т | B13: Снигерёв Дмитрий | C13: 148 | D13: 217 | E13: 145.1 | F13: =SUM(C13:E13) -> 510.1 | G13: =AVERAGE(C13:E13) -> 170.0333333 | H13: =MAX(C13:E13) -> 217 | I13: =IF(C13<>"",MAX(B13:E13)-MIN(B13:E13),"") -> 71.9 | J13: 3
A14: 7 | B14: Жиделев Андрей | C14: 186 | D14: 167 | E14: 157 | F14: =SUM(C14:E14) -> 510 | G14: =AVERAGE(C14:E14) -> 170 | H14: =MAX(C14:E14) -> 186 | I14: =IF(C14<>"",MAX(B14:E14)-MIN(B14:E14),"") -> 29 | J14: 4
